[Event "*** Titled Tuesday Blitz"]
[Site "Chess.com"]
[Date "2020.03.03"]
[Round "2"]
[White "TigrVShlyape"]
[Black "RitvarsReimanis"]
[Result "1-0"]
[WhiteElo "2872"]
[BlackElo "2616"]
[TimeControl "180+1"]
[EndTime "9:18:09 PST"]
[Termination "TigrVShlyape won by resignation"]

1. d4 {[%clk 0:03:00.9]} 1... Nf6 {[%clk 0:02:58.6]} 2. Nf3 {[%clk 0:03:01]}
2... e6 {[%clk 0:02:58.7]} 3. Bf4 {[%clk 0:03:00.7]} 3... d5 {[%clk 0:02:58.9]}
4. e3 {[%clk 0:02:58.6]} 4... Bd6 {[%clk 0:02:59]} 5. Bxd6 {[%clk 0:02:57.2]}
5... Qxd6 {[%clk 0:02:58.7]} 6. c4 {[%clk 0:02:56.9]} 6... c6 {[%clk 0:02:55.3]}
7. Nc3 {[%clk 0:02:55.9]} 7... Nbd7 {[%clk 0:02:55.5]} 8. Bd3 {[%clk 0:02:51.3]}
8... O-O {[%clk 0:02:47.4]} 9. O-O {[%clk 0:02:50.5]} 9... dxc4 {[%clk
0:02:41.2]} 10. Bxc4 {[%clk 0:02:49.3]} 10... b5 {[%clk 0:02:41.6]} 11. Be2
{[%clk 0:02:35.7]} 11... a6 {[%clk 0:02:40.7]} 12. e4 {[%clk 0:02:32.2]} 12...
Qf4 {[%clk 0:02:31.6]} 13. g3 {[%clk 0:02:24.5]} 13... Qb8 {[%clk 0:02:28.5]}
14. e5 {[%clk 0:02:22.4]} 14... Nd5 {[%clk 0:02:28.4]} 15. Nxd5 {[%clk
0:02:20.7]} 15... cxd5 {[%clk 0:02:24.9]} 16. Bd3 {[%clk 0:02:19.1]} 16... f5
{[%clk 0:02:04.7]} 17. exf6 {[%clk 0:01:43.7]} 17... gxf6 {[%clk 0:02:04.7]} 18.
Nh4 {[%clk 0:01:40.8]} 18... f5 {[%clk 0:01:38.9]} 19. Re1 {[%clk 0:01:34.1]}
19... Nf6 {[%clk 0:01:35.5]} 20. Nf3 {[%clk 0:01:31.6]} 20... Ra7 {[%clk
0:01:30.6]} 21. Ne5 {[%clk 0:01:30.1]} 21... Rg7 {[%clk 0:01:26.4]} 22. Qd2
{[%clk 0:01:15.4]} 22... Qb6 {[%clk 0:01:19.3]} 23. Qf4 {[%clk 0:01:08]} 23...
Ne4 {[%clk 0:01:16.7]} 24. Rad1 {[%clk 0:01:03.2]} 24... Bb7 {[%clk 0:01:07.5]}
25. Be2 {[%clk 0:00:59.9]} 25... a5 {[%clk 0:01:04.7]} 26. f3 {[%clk 0:00:47]}
26... Nf6 {[%clk 0:00:50.6]} 27. Kh1 {[%clk 0:00:42.3]} 27... b4 {[%clk
0:00:48.9]} 28. Rc1 {[%clk 0:00:38.9]} 28... a4 {[%clk 0:00:41.4]} 29. Bd3
{[%clk 0:00:35.4]} 29... a3 {[%clk 0:00:39.9]} 30. b3 {[%clk 0:00:33.5]} 30...
Kh8 {[%clk 0:00:33.9]} 31. Rc5 {[%clk 0:00:31.6]} 31... Rc7 {[%clk 0:00:28.2]}
32. Rxc7 {[%clk 0:00:30.4]} 32... Qxc7 {[%clk 0:00:29.1]} 33. Ng6+ {[%clk
0:00:30.2]} 1-0

[Event "*** Titled Tuesday Blitz"]
[Site "Chess.com"]
[Date "2020.03.03"]
[Round "2"]
[White "swayamsm"]
[Black "Chessy222222"]
[Result "1-0"]
[WhiteElo "2492"]
[BlackElo "2189"]
[TimeControl "180+1"]
[EndTime "9:18:12 PST"]
[Termination "swayamsm won by resignation"]

1. d4 {[%clk 0:03:00.9]} 1... Nf6 {[%clk 0:02:59.4]} 2. Nf3 {[%clk 0:03:01.8]}
2... g6 {[%clk 0:02:58.6]} 3. Bg5 {[%clk 0:03:00.4]} 3... Bg7 {[%clk 0:02:57.5]}
4. Nbd2 {[%clk 0:03:00.9]} 4... h6 {[%clk 0:02:56.7]} 5. Bh4 {[%clk 0:02:59.1]}
5... d5 {[%clk 0:02:54.4]} 6. e3 {[%clk 0:02:58.5]} 6... O-O {[%clk 0:02:53.9]}
7. Bd3 {[%clk 0:02:58.1]} 7... c6 {[%clk 0:02:52.1]} 8. c3 {[%clk 0:02:57.9]}
8... b6 {[%clk 0:02:45.1]} 9. Qe2 {[%clk 0:02:57.7]} 9... a5 {[%clk 0:02:43]}
10. h3 {[%clk 0:02:56.5]} 10... Ba6 {[%clk 0:02:42.4]} 11. g4 {[%clk 0:02:56.2]}
11... Bxd3 {[%clk 0:02:36.1]} 12. Qxd3 {[%clk 0:02:57.1]} 12... Nh7 {[%clk
0:02:24]} 13. g5 {[%clk 0:02:57]} 13... h5 {[%clk 0:02:23.6]} 14. Bg3 {[%clk
0:02:57.1]} 14... Re8 {[%clk 0:02:22.2]} 15. h4 {[%clk 0:02:54.1]} 15... Nd7
{[%clk 0:02:21.6]} 16. e4 {[%clk 0:02:46.5]} 16... Nhf8 {[%clk 0:02:14]} 17. e5
{[%clk 0:02:45.1]} 17... Ne6 {[%clk 0:02:12.6]} 18. O-O {[%clk 0:02:43.2]} 18...
c5 {[%clk 0:02:03.9]} 19. Qb5 {[%clk 0:02:38.7]} 19... Qc8 {[%clk 0:01:57.3]}
20. Rac1 {[%clk 0:02:37.9]} 20... Rb8 {[%clk 0:01:54.6]} 21. c4 {[%clk
0:02:36.1]} 21... Qb7 {[%clk 0:01:44.1]} 22. dxc5 {[%clk 0:02:29.2]} 22... Ndxc5
{[%clk 0:01:39.8]} 23. cxd5 {[%clk 0:02:18.9]} 23... Qxd5 {[%clk 0:01:39.2]} 24.
Qc4 {[%clk 0:02:19]} 24... Red8 {[%clk 0:01:37.9]} 25. Qxd5 {[%clk 0:02:18.9]}
25... Rxd5 {[%clk 0:01:38.8]} 26. Nc4 {[%clk 0:02:19.2]} 26... Nd3 {[%clk
0:01:27.7]} 27. Rcd1 {[%clk 0:02:17.5]} 27... Ndf4 {[%clk 0:01:25.1]} 28. Rxd5
{[%clk 0:02:16]} 28... Nxd5 {[%clk 0:01:25.4]} 29. Rd1 {[%clk 0:02:16.5]} 29...
Rd8 {[%clk 0:01:18.6]} 30. Rd2 {[%clk 0:02:08.7]} 30... Kf8 {[%clk 0:01:14.8]}
31. Nd4 {[%clk 0:02:05]} 31... Nxd4 {[%clk 0:01:11.7]} 32. Rxd4 {[%clk
0:02:05.9]} 32... Ke8 {[%clk 0:01:10.1]} 33. Kf1 {[%clk 0:02:01.6]} 33... Bf8
{[%clk 0:01:04.5]} 34. e6 {[%clk 0:01:55.5]} 34... f6 {[%clk 0:01:02.3]} 35. Ke2
{[%clk 0:01:48.4]} 35... Bg7 {[%clk 0:00:59]} 36. Rd2 {[%clk 0:01:46.7]} 36...
f5 {[%clk 0:00:58.1]} 37. Be5 {[%clk 0:01:45.3]} 37... Bxe5 {[%clk 0:00:49.3]}
38. Nxe5 {[%clk 0:01:46.2]} 38... Nf4+ {[%clk 0:00:49.4]} 39. Kd1 {[%clk
0:01:44.9]} 39... Rxd2+ {[%clk 0:00:48.1]} 40. Kxd2 {[%clk 0:01:45.3]} 40...
Nxe6 {[%clk 0:00:41.7]} 41. Nxg6 {[%clk 0:01:45.4]} 41... Kf7 {[%clk 0:00:42.5]}
42. Ne5+ {[%clk 0:01:45.5]} 42... Kg7 {[%clk 0:00:43]} 43. Ke3 {[%clk
0:01:43.5]} 43... Nc5 {[%clk 0:00:38.6]} 44. f4 {[%clk 0:01:41.5]} 44... e6
{[%clk 0:00:33.2]} 45. Nc4 {[%clk 0:01:38.7]} 45... Nd7 {[%clk 0:00:32.1]} 46.
Kd4 {[%clk 0:01:38.9]} 46... Kf7 {[%clk 0:00:27.8]} 47. Ne5+ {[%clk 0:01:37.8]}
47... Nxe5 {[%clk 0:00:23.1]} 48. Kxe5 {[%clk 0:01:38.7]} 48... Ke7 {[%clk
0:00:20.2]} 49. a4 {[%clk 0:01:38.2]} 49... Kf7 {[%clk 0:00:19]} 50. Kd6 {[%clk
0:01:38.9]} 1-0

[Event "*** Titled Tuesday Blitz"]
[Site "Chess.com"]
[Date "2020.03.03"]
[Round "2"]
[White "giantslayer83"]
[Black "TBergh98"]
[Result "1-0"]
[WhiteElo "2588"]
[BlackElo "2309"]
[TimeControl "180+1"]
[EndTime "9:18:16 PST"]
[Termination "giantslayer83 won by resignation"]

1. e4 {[%clk 0:01:29.1]} 1... Nf6 {[%clk 0:02:57.7]} 2. e5 {[%clk 0:01:28.8]}
2... Nd5 {[%clk 0:02:56.9]} 3. d4 {[%clk 0:01:29.7]} 3... d6 {[%clk 0:02:57.2]}
4. Nf3 {[%clk 0:01:27.9]} 4... dxe5 {[%clk 0:02:57.3]} 5. dxe5 {[%clk
0:01:27.2]} 5... c6 {[%clk 0:02:52.7]} 6. c4 {[%clk 0:01:25]} 6... Nb4 {[%clk
0:02:52.6]} 7. Qxd8+ {[%clk 0:01:20.2]} 7... Kxd8 {[%clk 0:02:53.5]} 8. Na3
{[%clk 0:01:21]} 8... Bf5 {[%clk 0:02:53.6]} 9. Bd2 {[%clk 0:01:15.6]} 9... e6
{[%clk 0:02:53.5]} 10. Nd4 {[%clk 0:00:54.2]} 10... Bg6 {[%clk 0:02:50.2]} 11.
h4 {[%clk 0:00:53.1]} 11... Nd7 {[%clk 0:02:40.7]} 12. h5 {[%clk 0:00:51.3]}
12... Bd3 {[%clk 0:02:40.4]} 13. f4 {[%clk 0:00:46.6]} 13... Bc5 {[%clk
0:02:35.5]} 14. Rh3 {[%clk 0:00:40.9]} 14... Bxf1 {[%clk 0:02:25.9]} 15. Kxf1
{[%clk 0:00:41.5]} 15... Bxd4 {[%clk 0:02:03.3]} 16. Bxb4 {[%clk 0:00:41.2]}
16... Bxb2 {[%clk 0:02:03.5]} 17. Rd1 {[%clk 0:00:40.7]} 17... Kc8 {[%clk
0:01:51]} 18. Nc2 {[%clk 0:00:35]} 18... c5 {[%clk 0:01:48.3]} 19. Ba5 {[%clk
0:00:28]} 19... Nb6 {[%clk 0:01:41.8]} 20. Bxb6 {[%clk 0:00:19.7]} 20... axb6
{[%clk 0:01:42.7]} 21. a3 {[%clk 0:00:20.6]} 21... Rd8 {[%clk 0:01:36.4]} 22.
Rxd8+ {[%clk 0:00:19.6]} 22... Kxd8 {[%clk 0:01:37.3]} 23. Rb3 {[%clk
0:00:20.2]} 23... Bc1 {[%clk 0:01:32.1]} 24. g3 {[%clk 0:00:20.4]} 24... Kc7
{[%clk 0:01:31]} 25. Ke2 {[%clk 0:00:19.3]} 25... Ra6 {[%clk 0:01:28.6]} 26. Kd1
{[%clk 0:00:18.2]} 26... Bxf4 {[%clk 0:01:21.7]} 27. gxf4 {[%clk 0:00:17.6]}
27... g6 {[%clk 0:01:22.3]} 28. h6 {[%clk 0:00:15]} 28... Ra4 {[%clk 0:01:21.7]}
29. Ne3 {[%clk 0:00:14.8]} 29... Kc6 {[%clk 0:01:20.6]} 30. Kc2 {[%clk
0:00:14.3]} 30... Ra8 {[%clk 0:01:20.2]} 31. Rd3 {[%clk 0:00:14.2]} 31... Rf8
{[%clk 0:01:20.7]} 32. Ng4 {[%clk 0:00:13.1]} 32... f5 {[%clk 0:01:12.9]} 33.
Nf6 {[%clk 0:00:11.5]} 33... Rf7 {[%clk 0:01:13.5]} 34. Ne8 {[%clk 0:00:09.6]}
34... Rd7 {[%clk 0:01:07.4]} 35. Rxd7 {[%clk 0:00:09.4]} 35... Kxd7 {[%clk
0:01:08.3]} 36. Nf6+ {[%clk 0:00:10.3]} 36... Ke7 {[%clk 0:01:08.3]} 37. Nxh7
{[%clk 0:00:11.2]} 37... Kf7 {[%clk 0:01:08.7]} 38. Ng5+ {[%clk 0:00:09.8]}
38... Kg8 {[%clk 0:01:08.6]} 39. Kb3 {[%clk 0:00:10.7]} 39... Kh8 {[%clk
0:01:07.9]} 40. Ka4 {[%clk 0:00:10.8]} 1-0

[Event "*** Titled Tuesday Blitz"]
[Site "Chess.com"]
[Date "2020.03.03"]
[Round "2"]
[White "Olga_Zhuravleva"]
[Black "boasovietica"]
[Result "0-1"]
[WhiteElo "2226"]
[BlackElo "2502"]
[TimeControl "180+1"]
[EndTime "9:18:21 PST"]
[Termination "boasovietica won by resignation"]

1. e4 {[%clk 0:02:37.6]} 1... c5 {[%clk 0:02:58.1]} 2. Nf3 {[%clk 0:02:37.3]}
2... Nc6 {[%clk 0:02:55.1]} 3. Nc3 {[%clk 0:02:36.6]} 3... d6 {[%clk 0:02:54.3]}
4. d4 {[%clk 0:02:36.4]} 4... cxd4 {[%clk 0:02:52.2]} 5. Nxd4 {[%clk 0:02:37.3]}
5... Nf6 {[%clk 0:02:49.9]} 6. Nb3 {[%clk 0:02:36.5]} 6... e6 {[%clk 0:02:48.7]}
7. Bd3 {[%clk 0:02:35.6]} 7... Be7 {[%clk 0:02:42.7]} 8. O-O {[%clk 0:02:35.5]}
8... O-O {[%clk 0:02:43.1]} 9. f4 {[%clk 0:02:35.6]} 9... a6 {[%clk 0:02:42.8]}
10. Kh1 {[%clk 0:02:34.6]} 10... Qc7 {[%clk 0:02:42.3]} 11. Qf3 {[%clk
0:02:33.8]} 11... Nb4 {[%clk 0:02:39.3]} 12. Bd2 {[%clk 0:02:32.8]} 12... b5
{[%clk 0:02:36.4]} 13. a3 {[%clk 0:02:31.7]} 13... Nxd3 {[%clk 0:02:35.8]} 14.
cxd3 {[%clk 0:02:32.6]} 14... Bb7 {[%clk 0:02:36.4]} 15. Rae1 {[%clk 0:02:31.7]}
15... Bc6 {[%clk 0:02:16.7]} 16. Nd4 {[%clk 0:02:29.3]} 16... Rab8 {[%clk
0:02:09.2]} 17. Qh3 {[%clk 0:02:28.8]} 17... b4 {[%clk 0:02:02.3]} 18. Nce2
{[%clk 0:02:20.4]} 18... bxa3 {[%clk 0:02:00.6]} 19. bxa3 {[%clk 0:02:21.3]}
19... Bb5 {[%clk 0:01:50]} 20. Rc1 {[%clk 0:02:18.8]} 20... Qd7 {[%clk
0:01:44.9]} 21. e5 {[%clk 0:02:13.2]} 21... Nd5 {[%clk 0:01:41]} 22. f5 {[%clk
0:02:08.5]} 22... dxe5 {[%clk 0:01:38]} 23. fxe6 {[%clk 0:02:07.2]} 23... fxe6
{[%clk 0:01:36.6]} 24. Nxe6 {[%clk 0:02:07.7]} 24... Rxf1+ {[%clk 0:01:22.8]}
25. Rxf1 {[%clk 0:02:06.8]} 25... Bxd3 {[%clk 0:01:06.3]} 26. Qxd3 {[%clk
0:01:48.6]} 26... Qxe6 {[%clk 0:01:05.1]} 27. h3 {[%clk 0:01:46.4]} 27... Nf6
{[%clk 0:01:01.1]} 28. Bg5 {[%clk 0:01:41.4]} 28... Rb3 {[%clk 0:01:00.4]} 29.
Qc2 {[%clk 0:01:24.7]} 29... Rxa3 {[%clk 0:00:51.7]} 30. Bxf6 {[%clk 0:01:22]}
30... Bxf6 {[%clk 0:00:50.3]} 31. Ng1 {[%clk 0:01:17]} 31... h6 {[%clk
0:00:46.3]} 32. Qg6 {[%clk 0:01:13.7]} 32... Qc6 {[%clk 0:00:40.1]} 33. Nf3
{[%clk 0:01:12]} 33... Rc3 {[%clk 0:00:37.9]} 34. Kh2 {[%clk 0:00:58.1]} 34...
Rc1 {[%clk 0:00:31.9]} 35. Rxc1 {[%clk 0:00:55.6]} 35... Qxc1 {[%clk 0:00:31.1]}
36. Qe8+ {[%clk 0:00:50.6]} 36... Kh7 {[%clk 0:00:30.4]} 37. Qe6 {[%clk
0:00:49.6]} 37... Qf4+ {[%clk 0:00:29.4]} 38. Kh1 {[%clk 0:00:46.5]} 38... e4
{[%clk 0:00:29.4]} 39. Nh2 {[%clk 0:00:36.4]} 39... Qc1+ {[%clk 0:00:26.7]} 40.
Nf1 {[%clk 0:00:36.4]} 40... Qxf1+ {[%clk 0:00:26.5]} 41. Kh2 {[%clk 0:00:37.3]}
41... Qf4+ {[%clk 0:00:25.4]} 0-1

[Event "*** Titled Tuesday Blitz"]
[Site "Chess.com"]
[Date "2020.03.03"]
[Round "2"]
[White "kingofthenil"]
[Black "renehp"]
[Result "1-0"]
[WhiteElo "2591"]
[BlackElo "2320"]
[TimeControl "180+1"]
[EndTime "9:18:22 PST"]
[Termination "kingofthenil won on time"]

1. d4 {[%clk 0:03:00.9]} 1... Nf6 {[%clk 0:02:40.1]} 2. c4 {[%clk 0:03:00]} 2...
e6 {[%clk 0:02:38.7]} 3. Nc3 {[%clk 0:03:00.2]} 3... Bb4 {[%clk 0:02:31.2]} 4.
a3 {[%clk 0:03:00.6]} 4... Bxc3+ {[%clk 0:02:15.2]} 5. bxc3 {[%clk 0:03:01.5]}
5... d5 {[%clk 0:02:13.9]} 6. cxd5 {[%clk 0:02:59.8]} 6... Nxd5 {[%clk
0:02:09.1]} 7. Bd2 {[%clk 0:02:17.5]} 7... c5 {[%clk 0:02:07.5]} 8. e4 {[%clk
0:02:15.9]} 8... Ne7 {[%clk 0:02:06.3]} 9. Nf3 {[%clk 0:02:11.9]} 9... Nbc6
{[%clk 0:02:05.1]} 10. Be3 {[%clk 0:02:08.2]} 10... Qa5 {[%clk 0:01:56.2]} 11.
Qd2 {[%clk 0:01:58.4]} 11... cxd4 {[%clk 0:01:51.9]} 12. cxd4 {[%clk 0:01:59.3]}
12... Qxd2+ {[%clk 0:01:51.3]} 13. Nxd2 {[%clk 0:01:58.3]} 13... b6 {[%clk
0:01:51.3]} 14. Nc4 {[%clk 0:01:50.4]} 14... O-O {[%clk 0:01:46.9]} 15. Nd6
{[%clk 0:01:48.5]} 15... Rd8 {[%clk 0:01:46.5]} 16. Nxc8 {[%clk 0:01:46.1]}
16... Raxc8 {[%clk 0:01:46]} 17. Ba6 {[%clk 0:01:45.6]} 17... Rb8 {[%clk
0:01:36.7]} 18. Rd1 {[%clk 0:01:36.5]} 18... b5 {[%clk 0:01:20.9]} 19. a4 {[%clk
0:01:35.9]} 19... bxa4 {[%clk 0:01:16.7]} 20. O-O {[%clk 0:01:33.8]} 20... Rb4
{[%clk 0:00:54.6]} 21. d5 {[%clk 0:01:24.4]} 21... exd5 {[%clk 0:00:51.1]} 22.
exd5 {[%clk 0:01:17.3]} 22... Rxd5 {[%clk 0:00:41.2]} 23. Rc1 {[%clk 0:01:11.2]}
23... h6 {[%clk 0:00:33.3]} 24. h3 {[%clk 0:01:09.2]} 24... a3 {[%clk
0:00:27.9]} 25. Bc4 {[%clk 0:01:02.7]} 25... Re5 {[%clk 0:00:10.3]} 26. Rfd1
{[%clk 0:00:59.8]} 26... a5 {[%clk 0:00:06.7]} 27. Be2 {[%clk 0:00:45.9]} 27...
a2 {[%clk 0:00:02.7]} 28. Bf3 {[%clk 0:00:44.4]} 28... Rb1 {[%clk 0:00:01.4]}
29. Rxb1 {[%clk 0:00:41.1]} 1-0

[Event "*** Titled Tuesday Blitz"]
[Site "Chess.com"]
[Date "2020.03.03"]
[Round "2"]
[White "juniortay"]
[Black "rogapa"]
[Result "0-1"]
[WhiteElo "2459"]
[BlackElo "2747"]
[TimeControl "180+1"]
[EndTime "9:18:24 PST"]
[Termination "rogapa won by resignation"]

1. e4 {[%clk 0:03:00.9]} 1... c5 {[%clk 0:03:00.2]} 2. Nf3 {[%clk 0:03:01.1]}
2... d6 {[%clk 0:03:00.4]} 3. d4 {[%clk 0:03:01.3]} 3... cxd4 {[%clk 0:03:01.3]}
4. Qxd4 {[%clk 0:03:01.8]} 4... Nf6 {[%clk 0:03:02]} 5. e5 {[%clk 0:03:01.6]}
5... Nc6 {[%clk 0:02:56.5]} 6. Bb5 {[%clk 0:03:01.5]} 6... Nd7 {[%clk
0:02:55.6]} 7. Bxc6 {[%clk 0:03:00.8]} 7... bxc6 {[%clk 0:02:56.5]} 8. exd6
{[%clk 0:03:01.2]} 8... exd6 {[%clk 0:02:56.8]} 9. O-O {[%clk 0:03:00.9]} 9...
Nf6 {[%clk 0:02:45.7]} 10. Re1+ {[%clk 0:02:51.5]} 10... Be7 {[%clk 0:02:45.3]}
11. Bf4 {[%clk 0:02:51.2]} 11... d5 {[%clk 0:02:13.6]} 12. Qc5 {[%clk 0:02:37]}
12... Be6 {[%clk 0:02:05.9]} 13. Qxc6+ {[%clk 0:02:32.5]} 13... Nd7 {[%clk
0:02:06.1]} 14. Bd6 {[%clk 0:02:22.8]} 14... O-O {[%clk 0:02:02.4]} 15. Bxe7
{[%clk 0:02:22.1]} 15... Qxe7 {[%clk 0:02:03.3]} 16. Nc3 {[%clk 0:02:08.1]}
16... Rfc8 {[%clk 0:01:33.9]} 17. Nxd5 {[%clk 0:01:44.1]} 17... Qf8 {[%clk
0:01:22.4]} 18. Qb7 {[%clk 0:01:16.8]} 18... Rab8 {[%clk 0:01:15.8]} 19. Qxa7
{[%clk 0:01:13.3]} 19... Rxb2 {[%clk 0:01:08.3]} 20. Ne3 {[%clk 0:00:50.8]}
20... Nc5 {[%clk 0:01:02]} 21. Qa3 {[%clk 0:00:45.8]} 21... Rbb8 {[%clk
0:00:58.3]} 22. Rad1 {[%clk 0:00:45]} 22... Ra8 {[%clk 0:00:57.8]} 23. Qb2
{[%clk 0:00:43.4]} 23... Rxa2 {[%clk 0:00:57.3]} 24. Qe5 {[%clk 0:00:43.9]}
24... Nd7 {[%clk 0:00:51.1]} 25. Qg5 {[%clk 0:00:38.3]} 25... h6 {[%clk
0:00:50.9]} 26. Qg3 {[%clk 0:00:37.9]} 26... Nf6 {[%clk 0:00:50.3]} 27. Ne5
{[%clk 0:00:37.8]} 27... Ne4 {[%clk 0:00:48.1]} 28. Qf4 {[%clk 0:00:37.8]} 28...
Nc3 {[%clk 0:00:46.3]} 29. Rc1 {[%clk 0:00:24.3]} 29... Ra4 {[%clk 0:00:43.8]}
30. Qg3 {[%clk 0:00:21]} 30... Qa3 {[%clk 0:00:40.8]} 31. Kh1 {[%clk 0:00:19.4]}
31... Ne2 {[%clk 0:00:39.2]} 32. Qf3 {[%clk 0:00:13.1]} 32... Nxc1 {[%clk
0:00:38.9]} 33. Nf5 {[%clk 0:00:13.2]} 33... Na2 {[%clk 0:00:30.4]} 34. Ne7+
{[%clk 0:00:12.1]} 34... Qxe7 {[%clk 0:00:29.9]} 0-1

[Event "*** Titled Tuesday Blitz"]
[Site "Chess.com"]
[Date "2020.03.03"]
[Round "2"]
[White "viktorko131"]
[Black "maestroza"]
[Result "0-1"]
[WhiteElo "2125"]
[BlackElo "2468"]
[TimeControl "180+1"]
[EndTime "9:18:27 PST"]
[Termination "maestroza won on time"]

1. e4 {[%clk 0:03:00.9]} 1... Nf6 {[%clk 0:03:00.1]} 2. e5 {[%clk 0:03:00.4]}
2... Nd5 {[%clk 0:03:00.2]} 3. c4 {[%clk 0:03:00.9]} 3... Nb6 {[%clk 0:02:59.9]}
4. d4 {[%clk 0:03:01.5]} 4... d6 {[%clk 0:03:00.4]} 5. exd6 {[%clk 0:03:01.7]}
5... exd6 {[%clk 0:03:01.3]} 6. h3 {[%clk 0:03:01.6]} 6... Nc6 {[%clk 0:03:01]}
7. Nf3 {[%clk 0:03:01]} 7... Bf5 {[%clk 0:02:53]} 8. a3 {[%clk 0:02:39.7]} 8...
Be7 {[%clk 0:02:44.3]} 9. Be2 {[%clk 0:02:33.5]} 9... O-O {[%clk 0:02:42.8]} 10.
O-O {[%clk 0:02:30.4]} 10... Bf6 {[%clk 0:02:43]} 11. Nc3 {[%clk 0:02:27.3]}
11... Re8 {[%clk 0:02:42.9]} 12. Be3 {[%clk 0:02:26.4]} 12... d5 {[%clk
0:02:36]} 13. c5 {[%clk 0:02:22.8]} 13... Nc8 {[%clk 0:02:36.4]} 14. b4 {[%clk
0:02:17]} 14... a6 {[%clk 0:02:35]} 15. Bd3 {[%clk 0:02:10.1]} 15... N8e7 {[%clk
0:02:33.4]} 16. Rb1 {[%clk 0:01:59.1]} 16... Qd7 {[%clk 0:02:29.5]} 17. a4
{[%clk 0:01:47.4]} 17... a5 {[%clk 0:02:20.8]} 18. b5 {[%clk 0:01:36]} 18... Nb4
{[%clk 0:02:20.7]} 19. Bxf5 {[%clk 0:01:33.9]} 19... Qxf5 {[%clk 0:02:02.1]} 20.
Rb2 {[%clk 0:00:49.3]} 20... h6 {[%clk 0:01:57.8]} 21. Re2 {[%clk 0:00:40.7]}
21... Ng6 {[%clk 0:01:46.8]} 22. Qd2 {[%clk 0:00:33.1]} 22... Re7 {[%clk
0:01:42]} 23. Nh2 {[%clk 0:00:23.6]} 23... Rae8 {[%clk 0:01:26]} 24. Ng4 {[%clk
0:00:20.7]} 24... Nh4 {[%clk 0:01:11.7]} 25. Bxh6 {[%clk 0:00:10.6]} 25... Qg6
{[%clk 0:00:18.7]} 26. Nxf6+ {[%clk 0:00:08]} 26... gxf6 {[%clk 0:00:18.9]} 27.
g4 {[%clk 0:00:06.9]} 27... Nf3+ {[%clk 0:00:17.9]} 0-1

[Event "*** Titled Tuesday Blitz"]
[Site "Chess.com"]
[Date "2020.03.03"]
[Round "2"]
[White "Mikedannnn"]
[Black "ahachess"]
[Result "1-0"]
[WhiteElo "2519"]
[BlackElo "2238"]
[TimeControl "180+1"]
[EndTime "9:18:31 PST"]
[Termination "Mikedannnn won by checkmate"]

1. e4 {[%clk 0:03:00.9]} 1... c5 {[%clk 0:02:59.4]} 2. Nf3 {[%clk 0:03:00.6]}
2... d6 {[%clk 0:02:59.2]} 3. d4 {[%clk 0:03:00.3]} 3... cxd4 {[%clk 0:02:59.4]}
4. Nxd4 {[%clk 0:03:01.2]} 4... Nf6 {[%clk 0:02:59.6]} 5. Nc3 {[%clk 0:03:00.5]}
5... g6 {[%clk 0:02:59.9]} 6. Be3 {[%clk 0:03:00.1]} 6... Bg7 {[%clk 0:03:00.3]}
7. f3 {[%clk 0:03:00]} 7... O-O {[%clk 0:03:00.3]} 8. Qd2 {[%clk 0:03:00.4]}
8... Nc6 {[%clk 0:03:00.6]} 9. Bc4 {[%clk 0:02:59.9]} 9... Ne5 {[%clk
0:02:57.6]} 10. Bb3 {[%clk 0:02:59.7]} 10... Bd7 {[%clk 0:02:57.8]} 11. h4
{[%clk 0:02:59.4]} 11... h5 {[%clk 0:02:57.3]} 12. O-O-O {[%clk 0:02:59.4]}
12... Rc8 {[%clk 0:02:56.8]} 13. Kb1 {[%clk 0:02:59.8]} 13... Nc4 {[%clk
0:02:37.6]} 14. Bxc4 {[%clk 0:02:59.3]} 14... Rxc4 {[%clk 0:02:38.5]} 15. b3
{[%clk 0:02:59.8]} 15... Rc8 {[%clk 0:02:30.6]} 16. Nde2 {[%clk 0:02:58.9]}
16... b5 {[%clk 0:02:17.1]} 17. Bh6 {[%clk 0:02:56.6]} 17... b4 {[%clk 0:02:13]}
18. Bxg7 {[%clk 0:02:53.2]} 18... Kxg7 {[%clk 0:02:13.9]} 19. Nd5 {[%clk
0:02:53.1]} 19... Nxd5 {[%clk 0:01:53.8]} 20. exd5 {[%clk 0:02:52.8]} 20... Qb6
{[%clk 0:01:42.2]} 21. g4 {[%clk 0:02:14.8]} 21... hxg4 {[%clk 0:01:14.8]} 22.
h5 {[%clk 0:02:14.8]} 22... Rh8 {[%clk 0:01:11.3]} 23. hxg6 {[%clk 0:01:57.7]}
23... fxg6 {[%clk 0:01:07.3]} 24. Nd4 {[%clk 0:01:45.8]} 24... gxf3 {[%clk
0:00:43.6]} 25. Qg5 {[%clk 0:01:06.8]} 25... Kf7 {[%clk 0:00:15.9]} 26. Rhg1
{[%clk 0:00:17.1]} 26... Rhg8 {[%clk 0:00:10.1]} 27. Rde1 {[%clk 0:00:17]} 27...
Rce8 {[%clk 0:00:10]} 28. Qf4+ {[%clk 0:00:17]} 28... Kg7 {[%clk 0:00:09.6]} 29.
Rxg6+ {[%clk 0:00:14.1]} 29... Kxg6 {[%clk 0:00:07.2]} 30. Rg1+ {[%clk
0:00:14.4]} 30... Kh7 {[%clk 0:00:04.2]} 31. Qh4# {[%clk 0:00:12.4]} 1-0